Cogmind - Beta 16 @@@ ROGUE MODE // 2026.02.09 @ 23:21:08 Player: AlmondRoll Result: Self-destructed Performance ------------- Evolutions (6) 3000 Regions Visited (15) 3000 Robots Destroyed (125) 625 Value Destroyed (3374) 3374 Prototype IDs (40) 800 Alien Tech Used (0) 0 Bonus (1100) 1100 TOTAL SCORE: 11899 Bonus ------- High Alert Combat Kills 176 Follower Combat Kills 106 Met Warlord at Base 500 MAIN.C Attacked Warlord 500 Friendly Fire -182 Cogmind --------- Core Integrity 498/1150 Matter 290/300 Energy 100/100 System Corruption 8% Temperature Cool (0) Movement Core (350) Ox6 Location -4/Factory Parts ------- > --- POWER (2) -------- (None) > --- PROPULSION (5) --- (None) > --- UTILITY (10) ----- Large Storage Unit Advanced Weight Redist. System Spectral Analyzer Transport Network Coupler Advanced System Shield > --- WEAPON (2) ------- (None) > --- INVENTORY (15) --- Improved Antigrav System Advanced Cryofiber Web Advanced Sensor Array Experimental Terrain Scan Processor Microactuators Microactuators Advanced Transmission Jammer Ghost Barrier Core Expander Vortex Driver (30) Vortex Driver (30) RU-N14's Throwing Claymores (5) RU-N14's Throwing Claymores (2) GAL Module Peak State ------------ > --- POWER ------------ Vortex Chain Reactor > --- PROPULSION ------- Combat Gravmag System Combat Gravmag System Combat Gravmag System Improved Antigrav System Cooled Antigrav System > --- UTILITY ---------- Large Storage Unit Advanced Weight Redist. System Spectral Analyzer Advanced Signal Interpreter Transport Network Coupler Advanced Transmission Jammer Advanced Reaction Control System Experimental Phase Shifter Layered Medium Armor Plating Advanced System Shield > --- WEAPON ----------- RU-N14's Throwing Claymores Heavy Pick > --- INVENTORY -------- Improved Antigrav System Improved Linear Gravjet Advanced Cooling System Structural Scanner Advanced Sensor Array Experimental Terrain Scan Processor Microactuators Microactuators Ghost Barrier Core Expander Vortex Driver Vortex Driver RU-N14's Throwing Claymores RU-N14's Throwing Claymores GAL Module [Rating: 130] Favorites ----------- Power Meta Core Engine Cooled Ion Engine Power Core Meta Core Reactor Vortex Chain Reactor Propulsion Improved Hover Unit Treads Light Treads Leg Aluminum Leg Wheel Compact Wheel Hover Unit Improved Hover Unit Flight Unit VTOL Module Utility Large Storage Unit Device Structural Scanner Storage Large Storage Unit Processor Improved Signal Interpreter Hackware Hacking Suite Protection Hardened Medium Armor Plating Weapon Heavy Pick Energy Gun Precision Beam Rifle Energy Cannon Particle Cannon Ballistic Gun Assault Rifle Launcher Heavy Missile Launcher Special Weapon RU-N14's Throwing Claymores Slashing Weapon Katana Piercing Weapon Heavy Pick Special Melee Weapon Improved Datajack Build | -11 -10 -10 -8 -7 -7 -7 -7 -6 -6 -5 -5 -5 -5 -4 -4 ------- Run | Yrd Mat Sub Mat Fac Low Low Zio Pro Fac Fac Upp Upp War Pro Fac Slots Evolved 12 | . . . 4 2 . . . . 2 2 . . . . 2 Power 1 | . . . . . . . . . . 1 . . . . . Propulsion 3 | . . . 2 1 . . . . . . . . . . . Utility 8 | . . . 2 1 . . . . 2 1 . . . . 2 Weapon . | . . . . . . . . . . . . . . . . Parts Attached 147 | 3 8 4 25 21 2 . 4 1 15 31 3 1 14 1 14 Power 11 | . 2 . 3 1 . . . . . 3 1 . 1 . . Engine 2 | . 2 . . . . . . . . . . . . . . Core 8 | . . . 3 1 . . . . . 3 1 . . . . Reactor 1 | . . . . . . . . . . . . . 1 . . Propulsion 46 | 2 . 2 7 8 . . . . 4 14 . 1 5 1 2 Treads 10 | 2 . 2 6 . . . . . . . . . . . . Leg . | . . . . . . . . . . . . . . . . Wheel 1 | . . . 1 . . . . . . . . . . . . Hover 34 | . . . . 8 . . . . 4 13 . 1 5 1 2 Flight 1 | . . . . . . . . . . 1 . . . . . Utility 61 | . 2 . 7 9 2 . 2 . 10 11 2 . 5 . 11 Device 30 | . 1 . 4 3 1 . 2 . 4 5 1 . 3 . 6 Storage 6 | . 1 . . 2 . . . . . 1 . . 1 . 1 Processor 6 | . . . . 1 1 . . . . 1 . . 1 . 2 Hackware 6 | . . . . . . . . . 3 3 . . . . . Protection 13 | . . . 3 3 . . . . 3 1 1 . . . 2 Artifact . | . . . . . . . . . . . . . . . . Weapon 29 | 1 4 2 8 3 . . 2 1 1 3 . . 3 . 1 Energy Gun 1 | . . . 1 . . . . . . . . . . . . Energy Cannon 6 | . 2 1 2 . . . . . . . . . 1 . . Ballistic Gun 8 | 1 2 1 4 . . . . . . . . . . . . Ballistic Cannon . | . . . . . . . . . . . . . . . . Launcher 1 | . . . . . . . . 1 . . . . . . . Special Weapon 5 | . . . 1 . . . 2 . . . . . 1 . 1 Impact Weapon . | . . . . . . . . . . . . . . . . Slashing Weapon 4 | . . . . 2 . . . . . 1 . . 1 . . Piercing Weapon 2 | . . . . . . . . . 1 1 . . . . . Special Melee Weapon 2 | . . . . 1 . . . . . 1 . . . . . Unidentified Prototypes 18 | . 1 . 2 . . . 2 . . 4 . . 8 . 1 Corrupted Parts 1 | . . . . . . . . . . . . . . 1 . System Corruption 5 | . . . . . . . . . . . . . . 5 . Parts Lost 39 | . . . 3 . . 1 . 1 3 10 2 2 . 2 15 Power 3 | . . . . . . . . . . 1 1 . . . 1 Propulsion 16 | . . . 1 . . 1 . . 2 3 1 1 . . 7 Utility 14 | . . . 1 . . . . . . 5 . . . 2 6 Weapon 6 | . . . 1 . . . . 1 1 1 . 1 . . 1 Highest Loss Streak 11 | . . . 2 . . 1 . 1 2 5 2 2 . 2 11 To Critical Strikes 1 | . . . . . . . . . . 1 . . . . . Average Backups 13 | 4 12 13 14 14 14 13 14 13 13 13 13 12 13 14 13 Power . | 1 . . . . . . . . . . . . . . . Propulsion 3 | 3 4 7 4 3 2 1 1 1 1 2 4 3 2 3 1 Utility 4 | . . 1 4 6 9 9 9 7 7 6 4 4 4 5 6 Weapon 3 | . 6 4 1 1 2 2 2 4 4 4 3 3 4 5 4 Tool/Special . | . . . . . . . . . . . . . . . . Unused Backups 31 | . 2 4 8 4 . . . . 1 1 . . 2 . 9 Power 2 | . . . . 2 . . . . . . . . . . . Propulsion 8 | . . 1 1 2 . . . . . . . . 1 . 3 Utility 11 | . . . 6 . . . . . . 1 . . 1 . 3 Weapon 9 | . 2 3 1 . . . . . 1 . . . . . 2 Tool/Special 1 | . . . . . . . . . . . . . . . 1 Average Slot Usage (%) 94 | . 92 100 98 94 91 92 96 100 92 89 98 99 96 90 86 Engine 3 | . 13 14 . . . . . . . . . . . . . Core 4 | . . . 8 6 6 6 6 6 5 8 10 11 4 . . Treads 9 | . 27 28 27 . . . . . . . . . . . . Hover 19 | . . . . 35 36 36 37 39 26 25 28 29 29 29 24 Device 14 | . 8 14 17 14 18 17 15 12 11 10 17 17 13 11 19 Storage 7 | . 14 14 9 6 6 6 6 6 5 5 5 5 5 5 5 Processor 6 | . . . . 6 11 12 12 12 11 10 5 5 8 11 14 Hackware 6 | . . . . . . . . . 15 19 11 11 11 10 5 Protection 3 | . . . 8 6 . . 2 6 1 . 4 5 5 4 3 Energy Cannon 4 | . 11 14 8 . . . . . . . . . . . . Ballistic Gun 4 | . 15 14 9 2 . . . . . . . . . . . Slashing Weapon 2 | . . . . 6 6 6 5 6 5 . . . 4 3 . Piercing Weapon 1 | . . . . . . . . . . 4 5 5 5 5 4 Special Melee Weapon 1 | . . . . 4 6 6 6 1 . 1 4 4 . . . Peak Build Rating 130 | 6 12 15 31 60 64 66 72 69 76 99 87 83 110 110 130 Average Rating 58 | 6 10 13 26 39 63 64 66 65 70 87 82 82 94 107 111 On Entrance 56 | 6 6 12 15 29 60 64 64 69 64 75 77 83 78 110 97 Avg Prop Armor Cover (%) 20 | . . . 20 . . 4 . . . . . . . . 11 Naked Turns . | . . . . . . . . . . . . . . . . Heaviest Build 80 | 12 35 39 49 40 39 44 46 46 48 52 52 48 71 71 80 Greatest Support 86 | 40 40 40 62 46 60 60 48 48 60 76 63 68 74 80 86 Greatest Overweight (x) 6 | . 2 . 3 . . . . . 1 1 . . 1 . 6 Average Overweight (x) . | . . . 2 . . . . . . . . . . . . Largest Inventory Capacity 15 | 8 15 15 15 15 15 15 15 15 15 15 15 15 15 15 15 Average Capacity 14 | 8 13 15 15 14 15 15 15 15 15 15 15 15 15 15 15 Most Carried 15 | 6 15 15 15 15 15 14 15 15 15 15 15 14 15 15 15 Average Carried 14 | 3 12 14 14 14 14 13 14 14 14 14 14 13 14 15 14 Final Capacity 15 | 8 15 15 15 15 15 15 15 15 15 15 15 15 15 15 15 Final Carried 15 | 3 15 15 15 15 14 13 15 15 15 15 14 13 15 15 14 Class Distribution -------------------- 40% | Mutant 19% | Hacker-Scout 15% | Scout 7% | Scientist-Scout 7% | Hacker-Mutant 6% | Scavenger-Ninja Dominant Class ---------------- Mutant | -10/Materials Mutant | -10/Subcaves Mutant | -8/Materials Scout | -7/Factory Scout | -7/Lower Caves Scout | -7/Lower Caves Scout | -7/Zion Scout | -6/Proximity Caves Hacker-Scout | -6/Factory Hacker-Scout | -5/Factory Hacker-Scout | -5/Upper Caves Scientist-Scout | -5/Upper Caves Hacker-Scout | -5/Warlord Hacker-Mutant | -4/Proximity Caves Scavenger-Ninja | -4/Factory Resources | -11 -10 -10 -8 -7 -7 -7 -7 -6 -6 -5 -5 -5 -5 -4 -4 ----------- Run | Yrd Mat Sub Mat Fac Low Low Zio Pro Fac Fac Upp Upp War Pro Fac Matter Collected 3194 | 200 250 134 575 250 50 50 33 94 445 492 141 . 230 . 250 Remotely . | . . . . . . . . . . . . . . . . Salvage Created 5808 | 53 397 221 1020 480 69 52 . 217 836 1242 152 82 . . 987 Parts 298 | 1 21 10 66 27 . 3 . 5 40 67 10 2 . . 46 Haulers Intercepted 11 | . 1 . 2 2 . . . . 2 2 . . . . 2 Recyclers Shooed 7 | . 3 . 1 . . . . . . 1 . . . . 2 Parts Field Recycled . | . . . . . . . . . . . . . . . . Retrieved Matter . | . . . . . . . . . . . . . . . . Parts Self-Destructed 32 | . . 12 . . 4 3 . 5 . . 6 . . 2 . Prevented 2 | . . . . . . . . . . . 2 . . . . Parts Restored . | . . . . . . . . . . . . . . . . Kills | -11 -10 -10 -8 -7 -7 -7 -7 -6 -6 -5 -5 -5 -5 -4 -4 ------- Run | Yrd Mat Sub Mat Fac Low Low Zio Pro Fac Fac Upp Upp War Pro Fac Combat Hostiles Destroyed 66 | . 3 5 15 . . 2 . 3 4 11 5 . . . 18 Melee 22 | . . . . . . 2 . . 4 11 1 . . . 4 Guns 16 | . 2 1 13 . . . . . . . . . . . . Cannons 9 | . 1 4 2 . . . . . . . . . . . 2 AOE 19 | . . . . . . . . 3 . . 4 . . . 12 Classes Destroyed 16 | 1 4 3 3 1 . . . . 2 . 1 . . . 1 Worker 11 | . 1 . . . . . . . 2 3 . . . . 5 Builder 12 | . . . 2 5 . . . . 2 1 . . . . 2 Hauler 11 | . 1 . 2 2 . . . . 2 2 . . . . 2 Recycler 16 | 1 3 . 2 3 . . . . 2 3 . . . . 2 Mechanic 1 | . . . . . . . . . 1 . . . . . . Operator 1 | . . . . 1 . . . . . . . . . . . Watcher 6 | . 1 . . 1 . . . . 1 2 . . . . 1 Swarmer 25 | . . 1 2 . . 2 . 3 1 5 4 . . . 7 Cutter 3 | . . . . . . . . . . . . . . . 3 Grunt 18 | . 3 . 6 . . . . . 1 1 . . . . 7 Duelist 1 | . . . 1 . . . . . . . . . . . . Researcher 1 | . . . . . . . . . . . 1 . . . . Sentry 10 | . . 2 4 . . . . . . 2 1 . . . 1 Hunter 4 | . . . 2 . . . . . . 2 . . . . . Programmer 3 | . . . . . . . . . 2 1 . . . . . Subdweller 2 | . . 2 . . . . . . . . . . . . . Decomposer 1 | . . . . . . . . . . . . 1 . . . Best Kill Streak 14 | 1 3 1 5 2 . 2 . 3 3 4 4 . . . 14 Combat Bots Only 8 | . 3 1 5 . . 2 . 3 1 3 4 . . . 8 Max Kills in Single Turn 8 | 1 1 1 1 1 . 1 . 2 1 1 4 1 . . 8 Gunslinging . | . . . . . . . . . . . . . . . . Exploded 5 | . . . . . . . . 2 . . 4 . . . 5 Melee 1 | . . . . . . 1 . . 1 1 1 . . . 1 Uniques/NPCs Destroyed . | . . . . . . . . . . . . . . . . Combat | -11 -10 -10 -8 -7 -7 -7 -7 -6 -6 -5 -5 -5 -5 -4 -4 -------- Run | Yrd Mat Sub Mat Fac Low Low Zio Pro Fac Fac Upp Upp War Pro Fac Hostile Shots Fired 888 | . 14 46 116 . . 58 . 4 102 148 28 25 7 103 237 Missed 391 | . 7 13 41 . . 25 . 1 46 50 13 11 4 66 114 Hits 497 | . 7 33 75 . . 33 . 3 56 98 15 14 3 37 123 Melee 20 | . . . 4 . . . . . . 1 . . . 1 14 Projectile 477 | . 7 33 71 . . 33 . 3 56 97 15 14 3 36 109 Critical Strikes 29 | . . 3 2 . . 1 . 1 2 5 1 . . 1 13 Part Disruptions 1 | . . . . . . . . . . . . . . . 1 Damage Taken 8139 | . 76 576 825 26 . 335 . 79 819 1549 307 262 78 687 2520 Core 1569 | . 11 70 124 26 . . . 13 115 241 62 . 49 206 652 Absorbed by Shields 691 | . . . 276 . . 76 . . 104 208 . . 27 . . Redirected to Shielding 104 | . . . . . . . . . . 104 . . . . . Ignored by Resistances 4 | . . . 4 . . . . . . . . . . . . Regen/Repaired (Parts) 343 | . 156 . . . . . . . 67 . . . 120 . . Core Remaining (%) 78 | 100 . 67 77 . . . . 94 86 . . . . 44 . Volleys Fired 159 | 3 35 46 66 . . . . 3 . . 1 . . . 5 Largest 2 | 2 2 2 2 . . . . 1 . . 1 . . . 1 Hottest 100 | 40 88 100 93 . . . . 39 . . . . . . . Shots Fired 277 | 6 70 73 119 . . . . 3 . . 1 . . . 5 Gun 161 | 6 48 30 77 . . . . . . . . . . . . Cannon 107 | . 22 43 42 . . . . . . . . . . . . Launcher 3 | . . . . . . . . 3 . . . . . . . Special 6 | . . . . . . . . . . . 1 . . . 5 Kinetic 161 | 6 48 30 77 . . . . . . . . . . . . Thermal 107 | . 22 43 42 . . . . . . . . . . . . Explosive 9 | . . . . . . . . 3 . . 1 . . . 5 Electromagnetic . | . . . . . . . . . . . . . . . . Robot Hit Streak 12 | 6 5 12 8 . . . . . . . . . . . 3 Robot Miss Streak 9 | . 8 9 5 . . . . 1 . . 2 . . . . Penetration Max . | . . . . . . . . . . . . . . . . Secondary Targets 1 | . . . 1 . . . . . . . . . . . . Max Gunslinging Chain 1 | . . . 1 . . . . . . . . . . . . Shots Hit Robots 328 | 6 38 38 75 20 2 8 . 5 32 58 13 2 3 . 28 Core Hits 165 | 2 13 10 37 7 . 2 . 7 14 28 5 1 . . 39 Critical Kills 1 | . . . 1 . . . . . . . . . . . . Critical Parts Destroyed . | . . . . . . . . . . . . . . . . Critical Strikes 12 | . . . 1 1 . 1 . . 3 2 1 . . . 3 Destroy 1 | . . . 1 . . . . . . . . . . . . Sever 5 | . . . . 1 . 1 . . 3 . . . . . . Impale 6 | . . . . . . . . . . 2 1 . . . 3 Melee Attacks 297 | . . . . 32 3 16 5 5 59 89 16 9 11 . 52 Impact . | . . . . . . . . . . . . . . . . Slashing 118 | . . . . 32 3 16 5 5 55 . . . 2 . . Piercing 178 | . . . . . . . . . 4 89 15 9 9 . 52 Sneak Attacks 47 | . . . . 10 . 1 . . 9 15 4 1 . . 7 Combat Hostiles 1 | . . . . . . . . . . . 1 . . . . Follow-up Attacks . | . . . . . . . . . . . . . . . . Damage Inflicted 14487 | 47 486 724 1301 1133 171 473 . 546 1438 2441 1010 165 104 47 4401 Guns 1237 | 47 222 241 727 . . . . . . . . . . . . Cannons 1305 | . 250 483 572 . . . . . . . . . . . . Explosions 3794 | . . . . . . . . 244 . . 459 . . . 3091 Melee 7942 | . . . . 1133 171 473 . 302 1438 2441 551 165 104 . 1164 Ramming 76 | . 14 . 2 . . . . . . . . . . 47 13 Kinetic 1237 | 47 222 241 727 . . . . . . . . . . . . Thermal 1490 | . 250 483 572 . . . . . . . . . . . 185 Explosive 3609 | . . . . . . . . 244 . . 459 . . . 2906 Electromagnetic . | . . . . . . . . . . . . . . . . Impact . | . . . . . . . . . . . . . . . . Slashing 3650 | . . . . 1133 171 473 . 302 1438 . . . . . 133 Piercing 4425 | . . . . . . . . . . 2441 551 165 104 . 1164 Highest Corruption 8 | . . . 4 . . 1 1 . . 4 2 2 2 7 8 Average Corruption 2 | . . . 2 . . 1 1 . . 2 2 2 2 2 4 Corruption Purged 4 | . . . . . . . . . . 4 . . . . . Corruption Blocked . | . . . . . . . . . . . . . . . . Effects 21 | . . . 2 . . 1 . . . 8 2 5 . . 3 Message Errors 7 | . . . 1 . . . . . . 1 . 2 . . 3 Matter Fused 4 | . . . . . . . . . . 2 1 1 . . . Heat Flow Errors 4 | . . . 1 . . . . . . 2 . 1 . . . Energy Discharges 3 | . . . . . . 1 . . . 2 . . . . . Data Loss (minor) 3 | . . . . . . . . . . 1 1 1 . . . Overload Shots . | . . . . . . . . . . . . . . . . Overflow Damage 1614 | . 8 . 8 287 53 82 . 177 203 272 112 72 14 7 319 Projectiles 16 | . 8 . 8 . . . . . . . . . . . . Explosions 213 | . . . . . . . . . . . 33 . . . 180 Melee 1385 | . . . . 287 53 82 . 177 203 272 79 72 14 7 139 Knockbacks 2 | . . . . . . . . . . . . . . 2 . Impact 1 | . . . . . . . . . . . . . . 1 . Kinetic . | . . . . . . . . . . . . . . . . Secondary 1 | . . . . . . . . . . . . . . 1 . Self-Inflicted Damage 65 | . . . . . . . . 36 . . . . . 23 6 Shots 1 | . . . . . . . . 1 . . . . . . . Rammed 6 | . 1 . 1 . . . . . . . . . . 1 3 Targets Rammed 8 | . 3 . 1 . . . . . . . . . . 1 3 Kicked . | . . . . . . . . . . . . . . . . Crushed 2 | . 2 . . . . . . . . . . . . . . Highest Temperature 367 | . 188 8 245 . . . . . . 231 1 274 317 152 367 Average Temperature 64 | . 68 6 60 . . . . . . 95 1 88 60 58 82 Received Heat Transfer 1518 | . 42 207 217 . . 10 . . 187 90 45 36 18 60 606 Effects 2 | . . . 1 . . . . . . 1 . . . . . Energy Bleed 2 | . . . 1 . . . . . . 1 . . . . . Siege Activations . | . . . . . . . . . . . . . . . . Martial Activations . | . . . . . . . . . . . . . . . . Shielding Activations . | . . . . . . . . . . . . . . . . Robots Disrupted . | . . . . . . . . . . . . . . . . Combat Hostiles . | . . . . . . . . . . . . . . . . Robots Corrupted . | . . . . . . . . . . . . . . . . Combat Hostiles . | . . . . . . . . . . . . . . . . Parts Fried . | . . . . . . . . . . . . . . . . Impact Corruptions 1 | . . . . . . . . . . . . . . 1 . Robots Melted . | . . . . . . . . . . . . . . . . Combat Hostiles . | . . . . . . . . . . . . . . . . Parts Melted 1 | . . 1 . . . . . . . . . . . . . Heat Transferred 2283 | . 444 703 1036 . . . . . . . . . . . 100 Parts Sabotaged . | . . . . . . . . . . . . . . . . Parts Stolen . | . . . . . . . . . . . . . . . . Parts Stripped . | . . . . . . . . . . . . . . . . Power Chain Reactions 1 | . . . . . . . . . . . . . . . 1 Alert | -11 -10 -10 -8 -7 -7 -7 -7 -6 -6 -5 -5 -5 -5 -4 -4 ------- Run | Yrd Mat Sub Mat Fac Low Low Zio Pro Fac Fac Upp Upp War Pro Fac Maximum Alert Level 3 | . . . . 1 . . . . . 1 . . . . 3 Low Security (%) 73 | 100 100 . 100 58 . . . . 100 83 . . . . . Level 1 10 | . . . . 41 . . . . . 16 . . . . 12 Level 2 15 | . . . . . . . . . . . . . . . 84 Level 3 . | . . . . . . . . . . . . . . . 3 Level 4 . | . . . . . . . . . . . . . . . . Level 5 . | . . . . . . . . . . . . . . . . High Security . | . . . . . . . . . . . . . . . . Max Security . | . . . . . . . . . . . . . . . . Peak Influence 759 | 5 94 . 162 271 . . . . 146 239 . . . . 759 Initial 522 | . 3 . . 49 . . . . 9 68 . . . . 522 Average 157 | . 15 . 71 162 . . . . 33 156 . . . . 488 Influence Increases 4542 | 5 154 105 450 402 5 95 . 85 519 665 110 140 97 165 1545 Destroy 0b10 Robot/C 1320 | . 60 60 300 . . 40 . 60 80 220 100 . 40 . 360 Destroy 0b10 Robot/NC 315 | 5 30 . 30 60 5 . . 15 50 55 . 5 . . 60 Destroy Leader 262 | . 24 . 94 6 . 10 . 10 24 58 10 . . . 26 Allied During Kill 12 | . . . . . . . . . . . . . 12 . . Successful Hack 238 | . 10 . 9 23 . . . . 91 73 . . . . 32 Select Force Hacks 50 | . . . . . . . . . . . . . . . 50 Disable Machine 150 | . 30 . 15 30 . . . . 15 . . . . . 60 Anti-Garrison Action 200 | . . . . 200 . . . . . . . . . . . Destroy Structure 225 | . . . 2 8 . . . . 19 34 . . . . 162 Advance Influence 450 | . . . . . . . . . . . . . . . 450 Partial Spotted 45 | . . . . . . . . . . 45 . . . . . Lose Combat Pursuer 1275 | . . 45 . 75 . 45 . . 240 180 . 135 45 165 345 Influence Decreases 3783 | . 159 105 340 411 106 95 . 70 394 656 206 92 141 107 901 Entered New Map 447 | . 2 . . 61 38 . . . 6 72 56 11 101 57 43 Time Decay 2703 | . 157 105 320 350 68 95 . 60 355 464 130 71 40 30 458 Search Patrol Dispatched 100 | . . . . . . . . . . . . . . . 100 Lost Part 353 | . . . 20 . . . . 10 23 100 20 10 . 20 150 Lost Ally 30 | . . . . . . . . . 10 20 . . . . . Purge Threat 150 | . . . . . . . . . . . . . . . 150 Squads Dispatched 28 | . 2 . 1 2 . . . . 3 9 . . . 1 10 Investigation 10 | . 1 . . 1 . . . . . 5 . . . . 3 Extermination 7 | . . . . 1 . . . . 2 2 . . . . 2 Reinforcement 9 | . 1 . 1 . . . . . 1 2 . . . . 4 Assault 2 | . . . . . . . . . . . . . . 1 1 Garrison . | . . . . . . . . . . . . . . . . Intercept . | . . . . . . . . . . . . . . . . Searches Triggered 1 | . . . . . . . . . . . . . . . 1 Construction Impeded . | . . . . . . . . . . . . . . . . Haulers Reinforced 1 | . . . . . . . . . . 1 . . . . . Active Scanning Responses . | . . . . . . . . . . . . . . . . Cargo Convoy Interrupts 2 | . . . . . . . . . 1 1 . . . . . Stealth | -11 -10 -10 -8 -7 -7 -7 -7 -6 -6 -5 -5 -5 -5 -4 -4 --------- Run | Yrd Mat Sub Mat Fac Low Low Zio Pro Fac Fac Upp Upp War Pro Fac Distress Signals 14 | . . . 4 2 . . . . 1 2 . . 2 1 2 Communications Jammed 11 | . . . . . . . . . . . . . . . 11 Distress Signals 10 | . . . . . . . . . . . . . . . 10 Times Spotted 267 | . 10 5 31 10 . 7 . 3 47 39 5 9 17 26 58 Peak Tracking Total 18 | . 3 1 8 3 . 5 . 3 11 13 4 11 10 18 15 Tactical Retreats 43 | . . 1 . 5 . 2 . . 12 7 . 3 1 3 9 ECM-based Alert Blocks 25 | . . . . 4 . . . . 21 . . . . . . Traps | -11 -10 -10 -8 -7 -7 -7 -7 -6 -6 -5 -5 -5 -5 -4 -4 ------- Run | Yrd Mat Sub Mat Fac Low Low Zio Pro Fac Fac Upp Upp War Pro Fac Traps Triggered 14 | . 4 1 1 1 . . . . 2 4 . . . . 1 Indirectly . | . . . . . . . . . . . . . . . . Trap Hack Attempts . | . . . . . . . . . . . . . . . . Triggered . | . . . . . . . . . . . . . . . . Disarmed . | . . . . . . . . . . . . . . . . Reprogrammed . | . . . . . . . . . . . . . . . . Reused . | . . . . . . . . . . . . . . . . Traps Extracted . | . . . . . . . . . . . . . . . . Installed . | . . . . . . . . . . . . . . . . Triggered . | . . . . . . . . . . . . . . . . Most Traps Carried 2 | . . 2 . . . . . . . . . . . . . Machines | -11 -10 -10 -8 -7 -7 -7 -7 -6 -6 -5 -5 -5 -5 -4 -4 ---------- Run | Yrd Mat Sub Mat Fac Low Low Zio Pro Fac Fac Upp Upp War Pro Fac Machines Disabled 13 | . 2 1 1 2 . . . . 1 . 1 . 1 . 4 Max in Single Turn 2 | . 1 1 1 1 . . . . 1 . 1 . 1 . 2 Garrison Access 4 | . . . . 1 . . . . 1 2 . . . . . Machines Repaired . | . . . . . . . . . . . . . . . . Machines Dismantled 1 | . . . . . . . . . . . . . 1 . . Machines Sabotaged . | . . . . . . . . . . . . . . . . Overloaded Fab Kills 1 | . . . . . . . . . . . . . . . 1 Hacking | -11 -10 -10 -8 -7 -7 -7 -7 -6 -6 -5 -5 -5 -5 -4 -4 --------- Run | Yrd Mat Sub Mat Fac Low Low Zio Pro Fac Fac Upp Upp War Pro Fac Machines Accessed 64 | . 6 2 7 8 1 . . . 14 12 1 1 3 . 9 Terminals 26 | . 3 . 5 3 . . . . 6 5 . 1 . . 3 Fabricators 5 | . . . . . . . . . 1 2 . . . . 2 Repair Stations 4 | . 1 . . 1 . . . . 1 . . . . . 1 Recycling Units 11 | . 2 . 1 2 . . . . 3 2 . . . . 1 Scanalyzers 7 | . . . 1 1 . . . . 2 1 . . . . 2 Garrison Access 4 | . . . . 1 . . . . 1 2 . . . . . Total Hacks 209 | . 22 5 13 24 1 . . . 47 59 3 1 4 . 30 Successful 117 | . 11 5 8 14 1 . . . 25 33 3 1 4 . 12 Failed 89 | . 11 . 4 9 . . . . 22 25 . . . . 18 Catastrophic 9 | . 1 . 1 3 . . . . 1 . . . . . 3 Database Lockouts 3 | . . . 1 1 . . . . . 1 . . . . . Manual 56 | . . . 3 1 . . . . 23 23 . . . . 6 Terminals 85 | . 10 . 9 6 . . . . 21 25 . 1 . . 13 Fabricators 19 | . . . . . . . . . 3 12 . . . . 4 Repair Stations 13 | . 5 . . 2 . . . . 4 . . . . . 2 Recycling Units 37 | . 7 . 2 4 . . . . 12 10 . . . . 2 Scanalyzers 31 | . . . 2 9 . . . . 5 6 . . . . 9 Garrison Access 11 | . . . . 3 . . . . 2 6 . . . . . Terminal Hacks 43 | . 5 5 5 1 1 . . . 6 8 3 1 4 . 4 Record 10 | . . 4 . . . . . . . . 3 1 2 . . Prototype ID Bank 3 | . 1 . . . . . . . 1 1 . . . . . Open Door 3 | . . . . . 1 . . . . . . . 2 . . Branch Access Points 4 | . . . 1 . . . . . 1 1 . . . . 1 Terminal Index 2 | . 1 . . . . . . . 1 . . . . . . Alert Level 1 | . . . 1 . . . . . . . . . . . . Unreport Threat 1 | . . . . . . . . . . . . . . . 1 Locate Traps 7 | . . . . 1 . . . . 1 3 . . . . 2 Maintenance Status 1 | . . . . . . . . . 1 . . . . . . Transport Status 1 | . . . 1 . . . . . . . . . . . . Recall Investigation 3 | . . . . . . . . . . 3 . . . . . Hauler Manifests 4 | . 1 . 2 . . . . . 1 . . . . . . Zone Layout 2 | . 2 . . . . . . . . . . . . . . Proto ID Catalog 1 | . . 1 . . . . . . . . . . . . . Fabricator Hacks 9 | . . . . . . . . . 2 5 . . . . 2 Network Status 4 | . . . . . . . . . 2 1 . . . . 1 Load Schematic 2 | . . . . . . . . . . 2 . . . . . Build 3 | . . . . . . . . . . 2 . . . . 1 Repair Station Hacks 8 | . 4 . . 2 . . . . 2 . . . . . . Scan Component 4 | . 2 . . 1 . . . . 1 . . . . . . Repair 4 | . 2 . . 1 . . . . 1 . . . . . . Recycling Unit Hacks 11 | . 2 . 1 3 . . . . 3 2 . . . . . Report Inventory 3 | . . . . 2 . . . . 1 . . . . . . Retrieve Components 8 | . 2 . 1 1 . . . . 2 2 . . . . . Scanalyzer 19 | . . . 1 7 . . . . 3 4 . . . . 4 Insert Component 4 | . . . . 2 . . . . . . . . . . 2 Analyze 2 | . . . . 2 . . . . . . . . . . . Retrieve Study 13 | . . . 1 3 . . . . 3 4 . . . . 2 Garrison Access Hacks 3 | . . . . . . . . . 1 2 . . . . . Seal Access 3 | . . . . . . . . . 1 2 . . . . . Unauthorized Hacks 24 | . . . 1 1 . . . . 8 12 . . . . 2 Terminals 8 | . . . 1 . . . . . 3 4 . . . . . Assimilate 3 | . . . . . . . . . 1 2 . . . . . Botnet 5 | . . . 1 . . . . . 2 2 . . . . . Fabricators 6 | . . . . . . . . . 1 4 . . . . 1 Report 1 | . . . . . . . . . . 1 . . . . . Prioritize 1 | . . . . . . . . . . 1 . . . . . Liberate 1 | . . . . . . . . . . 1 . . . . . Haulers 2 | . . . . . . . . . 1 1 . . . . . Overload 1 | . . . . . . . . . . . . . . . 1 Repair Stations 1 | . . . . . . . . . . . . . . . 1 Mechanics 1 | . . . . . . . . . . . . . . . 1 Recycling Units 8 | . . . . . . . . . 4 4 . . . . . Monitor 2 | . . . . . . . . . 1 1 . . . . . Reject 2 | . . . . . . . . . 1 1 . . . . . Recyclers 2 | . . . . . . . . . 1 1 . . . . . Mask 2 | . . . . . . . . . 1 1 . . . . . Scanalyzers . | . . . . . . . . . . . . . . . . Garrison Access 1 | . . . . 1 . . . . . . . . . . . Jam 1 | . . . . 1 . . . . . . . . . . . Data Cores Recovered 1 | . . . . 1 . . . . . . . . . . . Used . | . . . . . . . . . . . . . . . . Hacking Detections 43 | . 5 . 4 7 . . . . 12 8 . 1 . . 6 Full Trace Events 6 | . 1 . . . . . . . . 3 . . . . 2 Feedback Events . | . . . . . . . . . . . . . . . . Feedback Blocked . | . . . . . . . . . . . . . . . . Robot Schematics Acquired . | . . . . . . . . . . . . . . . . Robots Built . | . . . . . . . . . . . . . . . . Authchips . | . . . . . . . . . . . . . . . . Time . | . . . . . . . . . . . . . . . . Total Robot Build Rating . | . . . . . . . . . . . . . . . . Part Schematics Acquired 2 | . . . . 2 . . . . . . . . . . . Parts Built 4 | . . . . . . . . . . 2 . . . . 2 Authchips . | . . . . . . . . . . . . . . . . Time 175 | . . . . . . . . . . 111 . . . . 64 Total Part Build Rating 24 | . . . . . . . . . . 8 . . . . 16 Part Studies Acquired 13 | . . . 1 3 . . . . 3 4 . . . . 2 Parts Repaired 4 | . 2 . . 1 . . . . 1 . . . . . . Time 181 | . 58 . . 88 . . . . 35 . . . . . . Parts Recycled . | . . . . . . . . . . . . . . . . Recycled Matter . | . . . . . . . . . . . . . . . . Retrieved Matter . | . . . . . . . . . . . . . . . . Retrieved Components 27 | . 10 . . 3 . . . . 3 11 . . . . . Parts Scanalyzed 2 | . . . . 2 . . . . . . . . . . . Part Schematics Acquired 2 | . . . . 2 . . . . . . . . . . . Parts Damaged 1 | . . . . 1 . . . . . . . . . . . Bothacking | -11 -10 -10 -8 -7 -7 -7 -7 -6 -6 -5 -5 -5 -5 -4 -4 ------------ Run | Yrd Mat Sub Mat Fac Low Low Zio Pro Fac Fac Upp Upp War Pro Fac Used RIF Installer . | . . . . . . . . . . . . . . . . Robots Hacked 1 | . . . . . . . . . . . 1 . . . . Non-combat 1 | . . . . . . . . . . . 1 . . . . Combat . | . . . . . . . . . . . . . . . . Robot Hacks Applied 1 | . . . . . . . . . . . 1 . . . . parse_system 1 | . . . . . . . . . . . 1 . . . . Relay Couplers Released . | . . . . . . . . . . . . . . . . Fabnet Peak Effective % . | . . . . . . . . . . . . . . . . Robots Rewired 5 | . . . . . . . . . . . . . 5 . . Allies Hacked . | . . . . . . . . . . . . . . . . Hacks Repelled . | . . . . . . . . . . . . . . . . Allies | -11 -10 -10 -8 -7 -7 -7 -7 -6 -6 -5 -5 -5 -5 -4 -4 -------- Run | Yrd Mat Sub Mat Fac Low Low Zio Pro Fac Fac Upp Upp War Pro Fac Total Allies 8 | . . . . . . . . . 1 2 . . 5 . . Largest Group 5 | . . . . . . . . . 1 2 . . 5 . . Highest-Rated Group 280 | . . . . . . . . . 26 36 . . 280 . . Highest-Rated Ally 68 | . . . . . . . . . 26 26 . . 68 . . Total Orders 1 | . . . . . . . . . . 1 . . . . . STAY 1 | . . . . . . . . . . 1 . . . . . Ally Attacks 6 | . . . . . . . . . . . . . 6 . . Total Damage 296 | . . . . . . . . . . . . . 296 . . Kills 2 | . . . . . . . . . . . . . 2 . . Allies Corrupted . | . . . . . . . . . . . . . . . . Allies Melted . | . . . . . . . . . . . . . . . . Intel | -11 -10 -10 -8 -7 -7 -7 -7 -6 -6 -5 -5 -5 -5 -4 -4 ------- Run | Yrd Mat Sub Mat Fac Low Low Zio Pro Fac Fac Upp Upp War Pro Fac Active Infowar (turns) 7087 | . . . 564 790 192 303 417 174 998 958 257 451 708 125 1150 Optics 1689 | . . . . . . . . . . . . . 414 125 1150 Sensors 6414 | . . . 564 790 192 301 417 174 929 951 198 451 664 . 783 Structural 5043 | . . . . 475 192 302 417 174 863 842 257 451 293 . 777 T.N.C. 1111 | . . . . . . . . . . . . . . . 1111 Triangulation 51 | . . . . . . . . . . 51 . . . . . Jamming 898 | . . . . . . . . . . . . . . . 898 ECM 229 | . . . . 68 . . . . 160 . 1 . . . . Robot Analysis Total . | . . . . . . . . . . . . . . . . Derelict Logs Recovered 8 | . . 1 . . 2 2 . . . . 1 1 . 1 . Drone Launches . | . . . . . . . . . . . . . . . . Drone Recoveries . | . . . . . . . . . . . . . . . . Exploration | -11 -10 -10 -8 -7 -7 -7 -7 -6 -6 -5 -5 -5 -5 -4 -4 ------------- Run | Yrd Mat Sub Mat Fac Low Low Zio Pro Fac Fac Upp Upp War Pro Fac Turns Passed 10594 | 14 1059 1540 1040 790 192 357 417 174 1144 1168 265 451 708 125 1150 Spaces Moved 12795 | 1 532 866 592 1247 450 424 922 398 1947 1755 495 542 928 251 1445 Core 20 | . 2 . . . . . . . . . . . . . 18 Treads 1398 | 1 530 866 1 . . . . . . . . . . . . Legs . | . . . . . . . . . . . . . . . . Wheels 591 | . . . 591 . . . . . . . . . . . . Hover 10786 | . . . . 1247 450 424 922 398 1947 1755 495 542 928 251 1427 Flight . | . . . . . . . . . . . . . . . . Fastest Speed 16 | 160 150 160 120 38 21 21 35 35 30 16 38 25 46 46 48 Average Speed 60 | 160 159 160 121 43 35 33 35 35 43 41 38 39 51 49 59 Slowest Speed 350 | 160 160 160 155 44 38 38 35 35 102 94 43 46 108 60 350 Overloaded Moves 401 | . . . . . 3 35 . . 107 16 . 74 . 143 23 Propulsion Burnouts . | . . . . . . . . . . . . . . . . Robots Hopped . | . . . . . . . . . . . . . . . . Potential Cave-ins . | . . . . . . . . . . . . . . . . Cave-ins Triggered . | . . . . . . . . . . . . . . . . Exploration Rate (%) 54 | 2 74 56 53 18 57 60 85 61 46 39 62 70 96 47 39 Regions Visited 15 Branch Regions 9 Pre-discovered Areas 4 | . . . . . 1 . 1 . . . 1 . . 1 . Known Exits Taken 11 | . . . . 1 1 1 1 1 1 1 1 1 1 1 . Unknown Exits Taken 4 | 1 1 1 1 . . . . . . . . . . . . Scrap Searched 23 | . . 9 . . 5 2 1 3 . . 2 . . 1 . Spaces Dug 94 | . . 5 . 8 1 1 . 12 19 17 1 7 4 . 19 Terrain Destroyed 212 | . . 8 . 8 1 1 . 33 19 17 14 7 4 . 100 Melee 77 | . . . . 8 1 1 . . 19 17 1 7 4 . 19 Projectile 9 | . . 8 . . . . . . . . 1 . . . . AOE 126 | . . . . . . . . 33 . . 12 . . . 81 Terrain Rammed . | . . . . . . . . . . . . . . . . Walls Destroyed . | . . . . . . . . . . . . . . . . Machines Disabled . | . . . . . . . . . . . . . . . . Actions | -11 -10 -10 -8 -7 -7 -7 -7 -6 -6 -5 -5 -5 -5 -4 -4 --------- Run | Yrd Mat Sub Mat Fac Low Low Zio Pro Fac Fac Upp Upp War Pro Fac Total 14899 | 9 679 952 801 1446 476 601 1005 423 2148 2043 534 767 1132 252 1631 Wait 1056 | . 58 17 66 105 19 156 61 13 72 107 5 216 94 . 67 Move 12780 | . 531 865 591 1246 449 423 921 397 1946 1754 494 541 927 250 1445 Hop . | . . . . . . . . . . . . . . . . Pick Up 126 | . 21 8 19 18 1 . 5 2 9 13 4 . 13 . 13 Fast Attach 76 | . 15 1 11 4 . . 3 . 7 17 . . 12 . 6 Attach 45 | . . . 5 7 2 1 1 . 3 9 4 1 2 . 10 Detach 6 | . . . . 1 . . 1 . 1 . . . . . 3 Swap 144 | 3 2 3 14 14 2 5 3 1 35 28 9 . 8 1 16 Drop 153 | 3 14 12 27 19 . . 5 2 15 21 1 . 23 . 11 Fire 159 | 3 35 46 66 . . . . 3 . . 1 . . . 5 Melee 295 | . . . . 32 3 16 5 5 59 89 16 9 9 . 52 Ram 4 | . . . . . . . . . . . . . . 1 3 Kick . | . . . . . . . . . . . . . . . . Crush 4 | . 3 . 1 . . . . . . . . . . . . Escape Stasis 5 | . . . . . . . . . . 5 . . . . . Rewire 36 | . . . . . . . . . . . . . 36 . . Trap . | . . . . . . . . . . . . . . . . Miscellaneous 10 | . . . 1 . . . . . 1 . . . 8 . . Route ------- -11/Scrapyard -10/Materials (discovered 3 exits: [*Mat] / [*Min] / *Sub) -10/Subcaves -8/Materials -7/Factory -7/Lower Caves -7/Lower Caves (discovered 2 exits: *Fac / *Zio) -7/Zion -6/Proximity Caves -6/Factory (discovered 3 exits: *Fac / Low x2) -5/Factory (discovered 5 exits: *Fac / *Upp x2 / Ext x2) -5/Upper Caves -5/Upper Caves (discovered 2 exits: *Fac / *War) -5/Warlord -4/Proximity Caves -4/Factory (discovered 3 exits: Upp x2 / Arm) History --------- Turn | Location | Event 15 | -11/Scrapyard | Discovered new exit (range 0) 15 | -11/Scrapyard | Entered Materials 16 | -10/Materials | Met a group of wandering Federalists 309 | -10/Materials | Build established: Mutant 527 | -10/Materials | Discovered new exit (range 9) 712 | -10/Materials | Discovered new exit (range 13) 777 | -10/Materials | Repaired Lgt. Treads 811 | -10/Materials | Repaired Particle Cannon 1058 | -10/Materials | Discovered new exit (range 11) 1074 | -10/Materials | Entered Subcaves 1075 | -10/Subcaves | Continued accompanying wandering Federalists (3) 1192 | -10/Subcaves | Disturbed a concealed Subdweller 1665 | -10/Subcaves | A swath of the cavern ceiling suddenly collapsed 1956 | -10/Subcaves | Visited 4L-MR0's lab 1975 | -10/Subcaves | Found Meta Core 2367 | -10/Subcaves | Visited Clippyterm 2372 | -10/Subcaves | Learned Factory emergency access door positions 2459 | -10/Subcaves | Discovered new exit (range 15) 2614 | -10/Subcaves | Entered Materials 2614 | -8/Materials | Evolved 4 slots: Propulsion x2, Utility x2 2801 | -8/Materials | Central database locked down 3541 | -8/Materials | Discovered new exit (range 16) 3654 | -8/Materials | Entered Factory 3654 | -7/Factory | Evolved 2 slots: Propulsion x1, Utility x1 3986 | -7/Factory | Discovered new exit (range 6) 3988 | -7/Factory | Identified exit to Lower Caves 4103 | -7/Factory | Repaired Broken Cld. Airjet 4249 | -7/Factory | Attached Meta Core, gained temporary slots: Propulsion, Utility, Weapon 4403 | -7/Factory | Central database locked down 4444 | -7/Factory | Entered Lower Caves 4534 | -7/Lower Caves | Identified exit to Lower Caves 4636 | -7/Lower Caves | Entered another Lower Caves area 4640 | -7/Lower Caves | Discovered new exit (range 12) 4642 | -7/Lower Caves | Learned Factory security intel 4649 | -7/Lower Caves | Learned Factory stockpile data 4651 | -7/Lower Caves | Identified exit to Factory 4688 | -7/Lower Caves | Attracted the attention of an 0b10 checkpoint 4990 | -7/Lower Caves | Discovered new exit (range 10) 4992 | -7/Lower Caves | Identified exit to Zion 4993 | -7/Lower Caves | Entered Zion 5002 | -7/Zion | Given the Hacking Drone Bay 5002 | -7/Zion | Found Prototype Device 5018 | -7/Zion | Discovered new exit (range 11) 5021 | -7/Zion | Identified exit to Proximity Caves 5039 | -7/Zion | Build established: Scout 5044 | -7/Zion | System corruption cleaned by Quarantine Array 5169 | -7/Zion | Found Prototype Special Weapon 5169 | -7/Zion | Identified RU-N14's Throwing Claymores 5219 | -7/Zion | Found RU-N14's Throwing Claymores 5221 | -7/Zion | Identified Hacking Drone Bay 5226 | -7/Zion | Found RU-N14's Throwing Claymores 5227 | -7/Zion | Found RU-N14's Throwing Claymores 5302 | -7/Zion | Learned Factory fabricator intel 5304 | -7/Zion | Found GAL Module 5410 | -7/Zion | Entered Proximity Caves 5580 | -6/Proximity Caves | Discovered exit to Factory (range 7) 5584 | -6/Proximity Caves | Entered Factory 5584 | -6/Factory | Evolved 2 slots: Utility x2 5587 | -6/Factory | Loaded intel: 6 fabricator locations 5750 | -6/Factory | Repaired Cld. Airjet 6571 | -6/Factory | Identified exit to Lower Caves 6609 | -6/Factory | Cargo convoy interrupted 6637 | -6/Factory | Discovered new exit (range 15) 6727 | -6/Factory | Identified exit to Factory 6728 | -6/Factory | Entered another Factory area 6728 | -5/Factory | Evolved 2 slots: Power x1, Utility x1 6733 | -5/Factory | Found Prototype Hackware 6733 | -5/Factory | Identified Exp. System Shield 6987 | -5/Factory | Build established: Hacker-Scout 7055 | -5/Factory | Fabricated Cld. Airjet (x1) 7173 | -5/Factory | Identified exit to Upper Caves 7173 | -5/Factory | Identified exit to Extension 7268 | -5/Factory | Fabricated Cld. Airjet (x1) 7327 | -5/Factory | Discovered new exit (range 15) 7339 | -5/Factory | Identified exit to Factory 7842 | -5/Factory | Cargo convoy interrupted 7844 | -5/Factory | Lost 5 parts (1p1n3u) 7889 | -5/Factory | Central database locked down 7896 | -5/Factory | Entered Upper Caves 7931 | -5/Upper Caves | Learned Extension trap positions 7969 | -5/Upper Caves | Found Alien Artifact 8057 | -5/Upper Caves | Attracted the attention of an 0b10 checkpoint 8160 | -5/Upper Caves | Discovered new exit (range 3) 8160 | -5/Upper Caves | Identified exit to Upper Caves 8161 | -5/Upper Caves | Entered another Upper Caves area 8197 | -5/Upper Caves | Discovered exit to Factory (range 15) 8400 | -5/Upper Caves | Build established: Scientist-Scout 8545 | -5/Upper Caves | Spotted B-75 Beast 8583 | -5/Upper Caves | Learned location of 1 exit from Factory 8608 | -5/Upper Caves | Discovered new exit (range 9) 8611 | -5/Upper Caves | Identified exit to Warlord 8612 | -5/Upper Caves | Entered Warlord 8633 | -5/Warlord | System corruption cleaned by Quarantine Array 8732 | -5/Warlord | Found Prototype Device 8732 | -5/Warlord | Identified Minesniffer Drone Bay 8808 | -5/Warlord | Visited the Vortex Lab 8812 | -5/Warlord | Found Prototype Energy Cannon 8812 | -5/Warlord | Identified Vortex Driver 8814 | -5/Warlord | Found Vortex Driver 8829 | -5/Warlord | Warlord's base attacked by MAIN.C 8903 | -5/Warlord | Found Prototype Hackware 8906 | -5/Warlord | Found Prototype Processor 8906 | -5/Warlord | Identified Spectral Analyzer 8910 | -5/Warlord | Found Prototype Device 8910 | -5/Warlord | Identified Exp. Focal Shield 8922 | -5/Warlord | Found Prototype Device 8922 | -5/Warlord | Identified Exp. Phase Shifter 8928 | -5/Warlord | Found Prototype Reactor 8928 | -5/Warlord | Identified Vortex Chain Reactor 9055 | -5/Warlord | Met Warlord 9160 | -5/Warlord | Build established: Hacker-Scout 9179 | -5/Warlord | Warlord forces counterattacked 9193 | -5/Warlord | Opened side exit 9275 | -5/Warlord | Spotted Striker 9312 | -5/Warlord | Spotted Executioner 9313 | -5/Warlord | Discovered new exit (range 16) 9320 | -5/Warlord | Identified exit to Proximity Caves 9320 | -5/Warlord | Entered Proximity Caves 9322 | -4/Proximity Caves | Lost 4 allies 9323 | -4/Proximity Caves | Spotter reported a threat 9348 | -4/Proximity Caves | Spotter reported a threat 9355 | -4/Proximity Caves | Spotted B-86 Titan 9378 | -4/Proximity Caves | Attracted the attention of an 0b10 outpost 9383 | -4/Proximity Caves | Spotter reported a threat 9388 | -4/Proximity Caves | Attracted the attention of an 0b10 checkpoint 9418 | -4/Proximity Caves | Learned location of Quarantine (-3) 9431 | -4/Proximity Caves | Core integrity fell below 50% 9443 | -4/Proximity Caves | Discovered exit to Factory (range 4) 9445 | -4/Proximity Caves | Entered Factory 9445 | -4/Factory | Evolved 2 slots: Utility x2 9446 | -4/Factory | Identified exit to Upper Caves 9608 | -4/Factory | Found Prototype Processor 9608 | -4/Factory | Identified Exp. Terrain Scan Processor 9685 | -4/Factory | Found Exp. Terrain Scan Processor 9695 | -4/Factory | Search patrols dispatched 9745 | -4/Factory | Identified Core Expander 9745 | -4/Factory | Identified Ghost Barrier 9869 | -4/Factory | Fabricated Nova Cannon? 9912 | -4/Factory | Build established: Scavenger-Ninja 10075 | -4/Factory | Spotted B-86 Titan 10084 | -4/Factory | Identified exit to Armory 10195 | -4/Factory | First assault squad dispatched 10393 | -4/Factory | Spotted B-86 Titan 10507 | -4/Factory | Destroyed 8 combat bots 10536 | -4/Factory | Lost 11 parts (1p4n5u1w) 10582 | -4/Factory | Build established: Mutant 10589 | -4/Factory | Core integrity fell below 50% 10595 | -4/Factory | Self-destructed Last Messages --------------- 10543_ Fabricator zaps P-70 Sage with an electromagnetic arc. 10543_ Fabricator zaps S-27 Virus with an electromagnetic arc. 10543_ Chain reaction triggered in Lgt. Nuclear Core. 10543_ S-27 Virus system terminally corrupted. 10543_ S-27 Virus destroyed. 10543_ Fabricator disabled. 10543_ S-27 Virus misfires. 10543_ P-70 Sage resets S-27 Virus, system corruption cleaned. 10543_ P-70 Sage IFF system glitched. 10543_ P-70 Sage resets P-70 Sage, system corruption cleaned. 10544_ K-01 Serf collects debris. 10545_ P-70 Sage resets P-70 Sage, system corruption cleaned. 10551_ Cmb. Gravmag System+ destroyed. 10552_ IFZK SKTQELJNR=A7VPHROY 10558_ S-27 Virus destroyed. 10558_ Destroyed Mic. Fission Core. 10578_ U-05 Engineer builds a Wall. 10582_ U-05 Engineer lays Concrete. 10583_ U-05 Engineer builds a Wall. 10589_ ML4NSI OHAN,GF0D ZWCFIV0R=%O64ZSRCIZO Map ----- +----------------------------------------------------+ | ?????????????????????????????????????????????????? | | ?????????????????????????????????????????????????? | | ?????????????????????????????????????????????????? | | ?????????????????????????????????????????????????? | | ?????????????????????????????????????????????????? | | ?????????????????????????????????????????????????? | | ?????????????????????????????????????????????????? | | ?????????????????????????????????????????????????? | | ?????????????????????????????????????????????????? | | ?????????????????????????????????????????????????? | | ?????????????????????????????????????????????????? | | ?????????????????????????????????????????????????? | | ?????????????????????????????????????????????????? | | ?????????????????????????????????????????????????? | | ?????????????????????????????????????????????????? | | ?????????????????????????????????????????????????? | | ?????????????????????????????????????????????????? | | ?????????????????????????????????????????????????? | | ?????????????????????????????????????????????????? | | ?????????????????????????????????????????????????? | | ?????????????????????????????????????????????????? | | ?????????????????????????????????????????????????? | | ?????????????????????????????????????????????????? | | ?????????????????????????????????????????????????? | | ## ##########################????????????????? | | ul =p @ s #????????????????? | | ######################## #????????????????? | | #??????????????????????????????????????????????? | | #??????????????????????????????????????????????? | | #??????????????????????????????????????????????? | | ##?????????????????????????????????????????????? | | #?????????????????????????????????????????????? | | # #????????????????????????????????? | | / !! #????????????????????????????????? | | # ! #????????????????????????????????? | | # #????????????????????????????????? | | #? #????????????????????????????????? | | #?? #????????????????????????????????? | | + #????????????????????????????????? | | ##+##############????????????????????????????????? | | ??? ????????????????????????????????????????????? | | ???? #??????????????????????????????????????????? | | ????? #??????????????????????????????????????????? | | ?????????????????????????????????????????????????? | | ?????????????????????????????????????????????????? | | ?????????????????????????????????????????????????? | | ?????????????????????????????????????????????????? | | ????????????????????????????????????????????????? | | ???????????????????????????????????????????????? | | ???????????????????????????????????????????????? | +----------------------------------------------------+ Best States ------------- Heat Dissipation 74 Energy Generation 55 Energy Capacity 700 Matter Stores 300 Matter Capacity 300 Sight Range 24 Robot Scan Range 16 Terrain Scan Density 1010 ECM Strength 1 Jamming Range 16 Power Amplification 20 Additional Mass Support 9 Base Temperature (-) 200 Armor Coverage 450 Resistance: TH 10 Propulsion Shielding 66 Utility Shielding 66 Melee Speed Boost 40 Phase Shifting 20 Evasion (%) 85 Melee Accuracy 8 Recoil Reduction 3 Kinecelleration 40 Offensive Hacking 20 Defensive Hacking 30 Item Schematics ----------------- Cld. Airjet | -7/Factory | Scanalyzed Imp. Airjet | -7/Factory | Scanalyzed Robot Schematics ------------------ None Fabricated ------------ Cld. Airjet | x1 | -5/Factory Cld. Airjet | x1 | -5/Factory Nova Cannon | x2 | -4/Factory | Preloaded Repaired ---------- Lgt. Treads | 29% | -10/Materials Particle Cannon | 48% | -10/Materials Cld. Airjet | 99% | -7/Factory | Broken Cld. Airjet | 25% | -6/Factory Studied --------- Com. Wheel | -8/Materials | Hacked Imp. Hover Unit | -7/Factory | Hacked Katana | -7/Factory | Hacked Lgt. Nuclear Core | -7/Factory | Hacked Lgt. Fission Core | -6/Factory | Hacked Gravmag System | -6/Factory | Hacked Gravmag Array | -6/Factory | Hacked Antigrav System | -5/Factory | Hacked Gyrokinetic Inverter | -5/Factory | Hacked Hvy. Pick | -5/Factory | Hacked Cmb. Gravmag System | -5/Factory | Hacked Imp. Linear Gravjet | -4/Factory | Hacked Imp. Antigrav System | -4/Factory | Hacked Alien Tech Used ----------------- None Achievements -------------- Freedom! Infodabbler Insider Info Into The Breach Jackpot Strength In Numbers Suspicious Challenges ------------ None Game ------ Seed BombardmentPointMegashotty Manual? 0 Play Time 03:01:00 Cumulative 443.0 hours Start 2026.02.09 @ 19:50:54 End 2026.02.09 @ 23:21:08 Sessions 1 Manual Loads 0 Difficulty Rogue Special Mode None Game No. 213 Rogue 213 Adventurer 0 Explorer 0 Win Type - Total 15 Types 8/0/5/2/0/0/0/0/0/0 Lore% 70 Gallery% 73 Achievement% 48 Wizard Run 0 Options --------- Layout 0 ASCII 0 Keyboard 0 Movement Numpad Keybinds 0 Fullscreen 1 Font 18/SmallcapsGlow Map View 76x50 Zoom Use 0% Tactical HUD 1 Map Filters NONE Filters NONE Steam 1 RUN: 196da9c7-6473-490b-a597-d357fb41c74f